bitfinex-derivatives/quotes_SOLF0:USTF0_20250820
["timestamp","ask_amount","ask_price","bid_price","bid_amount"]
[1755717683775,3.0,184.93,184.9,8.4078]
[1755717684372,3.0,184.93,184.9,3.0]
[1755717685073,3.38308503,184.94,184.9,3.0]
[1755717685275,3.0,184.93,184.9,3.0]
[1755717686476,3.0,184.93,184.9,8.4077]
[1755717686970,3.0,184.93,184.84,4.46316558]
[1755717686971,3.38308503,184.94,184.84,4.46316558]
[1755717687176,2.8,184.97,184.86,3.03]
[1755717687369,3.38308503,184.99,184.87,3.03]
[1755717687670,2.8,184.98,184.88,3.03]
[1755717688375,2.8,184.98,184.92,8.4372]
[1755717688376,6.18308503,184.98,184.92,8.4372]
[1755717689371,6.18308503,184.98,184.92,3.03]
[1755717690183,3.38308503,184.98,184.94,5.4067]
[1755717690381,2.8,184.97,184.94,5.4067]
[1755717690582,2.8,184.97,184.94,8.4367]
[1755717690775,2.8,184.96,184.87,4.46316558]
[1755717691081,2.8,184.96,184.88,3.03]
[1755717691980,2.8,184.96,184.93,5.407]
[1755717692183,2.8,184.96,184.93,3.03]
[1755717692680,2.8,184.96,184.94,5.4067]
[1755717692876,2.8,184.96,184.93,3.03]
[1755717693481,2.8,184.96,184.93,8.4368]
[1755717694571,2.8,184.96,184.94,5.4067]
[1755717694775,6.18308503,184.98,184.94,8.4367]
[1755717694972,2.8,185.04,184.95,3.03]
[1755717695179,363.46,185.07,184.95,3.03]
[1755717695180,2.8,185.02,184.97,5.4057]
[1755717695383,2.8,185.02,184.98,3.03]
[1755717695675,2.8,185.05,184.99,3.03]
[1755717695983,6.18308503,185.05,184.99,3.03]
[1755717696181,363.46,185.07,184.99,3.03]
[1755717696483,2.8,185.03,184.99,3.03]
[1755717699190,2.8,185.03,184.96,5.4061]
[1755717699376,2.8,185.03,184.95,3.03]
[1755717700883,2.8,185.06,184.94,3.38308503]
[1755717701083,2.8,185.06,184.95,3.03]
[1755717701285,2.8,185.06,184.98,5.4055]
[1755717701586,2.8,185.06,184.97,3.03]
[1755717701788,2.8,185.06,184.97,8.4358]
[1755717701986,2.8,185.03,184.97,3.03]
[1755717702386,2.8,185.03,184.97,8.4358]
[1755717702790,2.8,185.03,184.97,3.03]
[1755717703089,6.18308503,185.01,184.93,5.4068]
[1755717703285,6.18308503,185.01,184.92,3.03]
[1755717704387,6.18308503,185.01,184.95,8.4362]
[1755717704587,6.18308503,185.01,184.95,3.03]
[1755717704892,2.8,185.09,185.0,3.03]
[1755717705192,6.18308503,185.08,185.0,3.03]
[1755717705387,6.18308503,185.08,185.0,8.4347]
[1755717705582,6.18308503,185.08,185.0,3.03]
[1755717705991,2.8,185.07,185.0,3.03]
[1755717706593,3.38308503,185.05,184.97,3.03]
[1755717706780,6.18308503,185.05,184.97,3.03]
[1755717706985,6.18308503,185.05,184.97,8.4358]
[1755717707286,6.18308503,185.04,184.95,3.03]
[1755717707788,2.8,185.03,184.95,3.03]
[1755717708982,2.8,185.02,184.98,8.4355]
[1755717709185,3.38308503,185.05,184.99,3.03]
[1755717709586,3.38308503,185.05,184.99,8.4352]
[1755717709786,2.8,185.06,184.99,8.4352]
[1755717709989,48.48810783,185.55,185.06,3.03]
[1755717709990,6.0314997,185.24,185.06,3.03]
[1755717710292,11.89152021,185.27,185.16,3.03]
[1755717710293,2.8,185.27,185.16,3.03]
[1755717711393,2.8,185.27,185.19,3.03]
[1755717711891,2.8,185.27,185.2,5.3991]
[1755717712187,2.8,185.27,185.19,3.03]
[1755717712794,4.77435074,185.27,185.13,3.03]
[1755717713096,2.8,185.26,185.13,65.03]
[1755717713394,2.8,185.26,185.09,3.03]
[1755717713893,2.8,185.26,185.2,5.3991]
[1755717714891,2.8,185.26,185.19,5.3994]
[1755717715496,2.8,185.26,185.17,3.03]
[1755717715883,2.8,185.26,185.13,2.83]
[1755717716895,2.8,185.26,185.2,5.3991]
[1755717717188,2.8,185.26,185.19,5.3994]
[1755717717388,2.8,185.26,185.17,2.83]
[1755717717795,2.8,185.26,185.18,5.3995]
[1755717718093,2.8,185.26,185.17,2.83]
[1755717718785,2.8,185.26,185.19,5.3993]
[1755717718991,1.86032295,185.26,185.19,5.3993]
[1755717719193,1.86032295,185.26,185.17,2.83]
[1755717719492,4.77435074,185.31,185.17,2.83]
[1755717719990,4.77435074,185.31,185.2,2.83]
[1755717720889,3.0,185.3,185.2,2.83]
[1755717722296,3.0,185.3,185.23,5.3982]
[1755717722691,3.0,185.3,185.24,5.3979]
[1755717723700,3.0,185.3,185.22,5.3983]
[1755717724496,139.18,185.34,185.21,5.3988]
[1755717724497,3.0,185.26,185.21,5.3988]
[1755717724698,3.0,185.25,185.21,5.3988]
[1755717724899,3.0,185.24,185.16,2.83]
[1755717725096,3.0,185.23,185.2,5.399]
[1755717725293,3.0,185.32,185.16,2.83]
[1755717725503,4.77435074,185.31,185.16,2.83]
[1755717725704,3.0,185.3,185.16,2.83]
[1755717726105,3.0,185.3,185.24,5.3979]
[1755717726305,3.0,185.3,185.2,2.83]
[1755717727105,3.0,185.3,185.24,5.3978]
[1755717728408,3.0,185.3,185.25,5.3977]
[1755717728611,4.77435074,185.32,185.25,5.3977]
[1755717728910,3.0,185.28,185.25,5.3977]
[1755717730208,138.66,185.32,185.26,5.3973]
[1755717730410,141.66,185.32,185.26,5.3973]
[1755717730610,141.66,185.32,185.25,8.2276]
[1755717730908,3.0,185.32,185.25,2.83]
[1755717731310,3.0,185.32,185.25,8.2275]
[1755717733107,3.0,185.32,185.26,5.3973]
[1755717733706,3.0,185.32,185.25,2.83]
[1755717733911,3.0,185.28,185.15,2.83]
[1755717735209,4.77435074,185.47,185.27,2.83]
[1755717735615,4.77435074,185.47,185.24,4.77435074]
[1755717735616,4.77435074,185.51,185.28,4.77435074]
[1755717735817,4.77435074,185.51,185.29,2.83]
[1755717736111,147.33435074,185.51,185.4,2.83]
[1755717736305,142.56,185.51,185.4,2.83]
[1755717737111,2.32,185.5,185.44,0.03606342]
[1755717738009,4.77435074,185.55,185.44,0.03606342]
[1755717738218,2.32,185.55,185.46,2.83]
[1755717738714,2.32,185.55,185.46,8.2215]
[1755717738910,2.32,185.55,185.49,0.03934756]
[1755717739516,146.1,185.55,185.49,0.03934756]
[1755717739816,2.32,185.55,185.49,0.03934756]
[1755717740114,2.32,185.62,185.5,2.83]
[1755717740317,143.74,185.61,185.5,2.83]
[1755717740516,143.74,185.61,185.53,5.3893]
[1755717741219,2.32,185.62,185.54,0.03920842]
[1755717741716,143.6,185.61,185.54,0.03920842]
[1755717742218,7.09435074,185.6,185.54,0.03920842]
[1755717743007,143.46,185.59,185.54,0.03920842]
[1755717743211,2.32,185.58,185.54,0.03920842]
[1755717743512,2.32,185.57,185.54,0.03920842]
[1755717744117,2.32,185.61,185.54,0.03920842]
[1755717744313,4.77435074,185.58,185.54,0.03920842]
[1755717744518,2.32,185.56,185.54,0.03920842]
[1755717744710,2.32,185.55,185.54,0.03920842]
[1755717748016,2.32,185.55,185.46,2.83]
[1755717748620,2.32,185.55,185.47,5.391]
[1755717748921,2.32,185.55,185.46,2.83]
[1755717749825,0.03399461,185.56,185.5,5.3903]
[1755717750121,143.0,185.55,185.51,2.83]
[1755717750920,143.03524254,185.55,185.51,2.83]
[1755717751225,0.03524254,185.55,185.51,2.83]
[1755717751425,142.89524254,185.55,185.51,2.83]
[1755717751722,142.87524254,185.55,185.51,2.83]
[1755717752415,145.18524254,185.55,185.47,2.83]
[1755717752925,2.31,185.55,185.48,5.3908]
[1755717753127,142.74,185.54,185.47,2.83]
[1755717753323,2.31,185.55,185.47,2.83]
[1755717753623,147.51435074,185.54,185.41,116.8114041]
[1755717753827,145.05,185.53,185.44,2.83]
[1755717754222,4.77435074,185.5,185.44,2.83]
[1755717754422,7.08435074,185.5,185.41,116.8114041]
[1755717754823,0.03603622,185.49,185.41,116.8114041]
[1755717755321,0.03603622,185.49,185.4,2.83]
[1755717755921,142.69603622,185.49,185.4,2.83]
[1755717757120,0.03603622,185.49,185.4,2.83]
[1755717757427,0.03603622,185.49,185.36,4.77435074]
[1755717757724,0.03603622,185.49,185.48,2.83]
[1755717757925,362.3,185.52,185.49,2.83]
[1755717758321,362.3,185.52,185.41,2.83]
[1755717759521,0.03554462,185.48,185.41,2.83]
[1755717760221,0.03554462,185.48,185.47,8.2213]
[1755717760422,0.03554462,185.48,185.4,2.83]
[1755717760822,0.03554462,185.48,185.45,5.3918]
[1755717761127,0.03554462,185.48,185.4,2.83]
[1755717761527,0.03554462,185.48,185.36,120.15745051]
[1755717761923,2.31,185.51,185.45,2.83]
[1755717762429,2.31,185.51,185.47,5.3911]
[1755717762629,0.03558244,185.5,185.45,2.83]
[1755717762833,0.03558244,185.5,185.46,2.83]
[1755717763128,0.03558244,185.5,185.4,2.83]
[1755717763322,362.3,185.52,185.4,2.83]
[1755717763629,362.3,185.52,185.51,5.3901]
[1755717763831,2.31,185.58,185.5,2.83]
[1755717764124,2.31,185.58,185.56,5.3886]
[1755717764323,144.57,185.58,185.56,5.3886]
[1755717764519,142.26,185.58,185.56,5.3884]
[1755717764924,0.03561926,185.59,185.56,2.83]
[1755717765125,0.03561926,185.59,185.48,2.83]
[1755717765321,0.03561926,185.59,185.58,5.3881]
[1755717765522,2.31,185.72,185.57,2.83]
[1755717765723,142.52,185.71,185.63,5.3864]
[1755717765927,142.52,185.71,185.57,2.83]
[1755717766127,142.52,185.71,185.57,7.60435074]
[1755717766330,142.48,185.71,185.57,4.77435074]
[1755717766529,2.31,185.7,185.58,2.83]
[1755717767025,2.31,185.7,185.62,0.03825821]
[1755717767225,142.58,185.69,185.62,0.03825821]
[1755717767931,2.31,185.68,185.62,0.03825821]
[1755717770326,142.32,185.68,185.62,2.86825821]
[1755717770924,2.31,185.72,185.64,5.3863]
[1755717771130,142.26,185.68,185.64,8.2163]
[1755717771725,142.26,185.68,185.64,8.25706358]
[1755717771930,144.57,185.68,185.64,5.42706358]
[1755717772326,142.26,185.68,185.64,8.25706358]
[1755717772525,367.07435074,185.73,185.66,5.3857]
[1755717772725,142.06,185.72,185.66,5.3857]
[1755717772929,142.06,185.72,185.65,2.83]
[1755717773130,144.37,185.72,185.64,0.04076358]
[1755717773935,144.37,185.72,185.64,5.42686358]
[1755717774231,144.37,185.72,185.64,0.04076358]
[1755717774625,144.37,185.72,185.64,5.42696358]
[1755717775029,144.37,185.72,185.64,0.04076358]
[1755717775729,2.31,185.71,185.64,0.04076358]
[1755717775935,7.08435074,185.71,185.64,0.04076358]
[1755717776130,2.3,185.7,185.64,0.04076358]
[1755717777130,2.48581262,185.69,185.64,0.04076358]
[1755717777329,2.3,185.66,185.52,2.91]
[1755717777525,2.3,185.64,185.52,2.91]
[1755717778035,4.77435074,185.67,185.52,2.91]
[1755717778240,141.72,185.66,185.52,7.68435074]
[1755717778429,141.72,185.66,185.61,5.3872]
[1755717778736,141.76,185.67,185.63,2.91]
[1755717778928,141.84,185.68,185.63,2.91]
[1755717779129,141.84,185.68,185.64,2.91]
[1755717779334,141.8,185.68,185.64,2.91]
[1755717779627,2.3,185.72,185.64,2.91]
[1755717779837,141.8,185.68,185.64,2.91]
[1755717780026,141.8,185.68,185.6,2.91]
[1755717780425,4.77435074,185.66,185.55,2.91]
[1755717780630,2.49696521,185.65,185.55,2.91]
[1755717781435,141.7,185.64,185.55,2.91]
[1755717782231,9.09152021,185.78,185.66,5.3856]
[1755717782432,9.09152021,185.78,185.61,2.91]
[1755717782433,83.90410454,185.74,185.61,2.91]
[1755717782928,83.90410454,185.74,185.69,8.2948]
[1755717783129,81.60410454,185.74,185.7,2.91]
[1755717783331,362.02,185.88,185.63,4.77435074]
[1755717783332,2.3,185.82,185.63,4.77435074]
[1755717783533,145.25478638,185.81,185.64,2.91]
[1755717783734,142.76,185.81,185.64,2.91]
[1755717783934,2.49333815,185.8,185.73,5.3835]
[1755717784133,2.49333815,185.8,185.64,2.91]
[1755717784332,2.3,185.93,185.74,2.91]
[1755717784539,2.3,185.91,185.74,2.91]
[1755717784742,2.48976518,185.9,185.74,2.91]
[1755717784939,2.48976518,185.9,185.8,5.3817]
[1755717785439,2.3,185.91,185.78,2.91]
[1755717785741,2.3,185.97,185.78,2.91]
[1755717785929,143.16,185.93,185.78,2.91]
[1755717787333,2.3,185.92,185.78,2.91]
[1755717787535,7.07435074,185.92,185.78,2.91]
[1755717788139,2.3,185.92,185.78,2.91]
[1755717788532,2.3,185.92,185.81,4.77435074]
[1755717788738,150.09435074,185.96,185.82,2.91]
[1755717788939,7.07435074,185.96,185.82,2.91]
[1755717789138,142.98,185.95,185.82,2.91]
[1755717789540,142.98,185.95,185.87,5.3795]
[1755717790048,2.3,185.94,185.82,2.91]
[1755717791140,2.3,185.94,185.85,5.3802]
[1755717791447,2.3,186.0,185.86,2.91]
[1755717791649,145.82,185.99,185.89,5.3788]
[1755717791945,145.82,185.99,185.86,2.91]
[1755717792253,4.77435074,185.97,185.86,2.91]
[1755717793145,2.3,185.98,185.86,2.91]
[1755717793337,7.07435074,185.98,185.86,2.91]
[1755717793539,146.1,185.97,185.86,2.91]
[1755717793741,2.3,185.98,185.86,2.91]
[1755717793946,146.06,185.97,185.86,2.91]
[1755717794247,2.3,185.98,185.9,5.3786]
[1755717794443,2.3,185.98,185.86,2.91]
[1755717795343,2.3,186.04,185.86,2.91]
[1755717795652,2.3,186.02,185.86,2.91]
[1755717796342,146.26,186.01,185.91,2.91]
[1755717796543,2.3,186.02,185.91,2.91]
[1755717796743,146.2,186.01,185.91,2.91]
[1755717797147,2.3,186.02,185.92,2.91]
[1755717797346,146.2,186.01,185.92,2.91]
[1755717797547,2.3,186.23,186.0,2.91]
[1755717797738,4.77435074,186.09,186.0,2.91]
[1755717797943,2.3,186.12,186.0,2.91]
[1755717797944,146.12,186.11,186.0,2.91]
[1755717798250,148.34,186.12,186.0,2.91]
[1755717798448,148.34,186.12,185.97,2.91]
[1755717798644,148.3,186.12,186.05,5.3743]
[1755717798850,148.3,186.12,186.03,2.91]
[1755717799147,148.3,186.12,185.99,2.91]
[1755717799349,4.77435074,186.1,185.99,2.91]
[1755717799550,2.3,186.09,185.99,2.91]
[1755717800144,4.77435074,186.08,185.99,2.91]
[1755717800341,146.32,186.07,185.99,2.91]
[1755717800748,4.77435074,186.08,186.01,5.3756]
[1755717800949,146.2,186.07,185.99,2.91]
[1755717801348,4.77435074,186.08,185.96,2.91]
[1755717801548,146.14,186.07,185.96,2.91]
[1755717802546,2.3,186.03,185.93,5.3779]
[1755717802954,2.3,186.03,185.92,2.91]
[1755717803155,4.77435074,186.01,185.92,2.91]
[1755717803648,4.77435074,186.01,185.92,8.288]
[1755717803842,4.77435074,186.01,185.92,2.91]
[1755717804050,2.3,186.0,185.87,2.91]
[1755717804651,145.8,186.01,185.87,2.91]
[1755717804849,7.07435074,186.03,185.87,2.91]
[1755717805156,152.97435074,186.03,185.87,2.91]
[1755717805351,4.77435074,185.99,185.87,2.91]
[1755717805545,7.07435074,185.99,185.87,2.91]
[1755717805756,2.3,185.98,185.87,2.91]
[1755717806649,7.06435074,185.95,185.87,2.91]
[1755717806848,2.29,185.95,185.87,2.91]
[1755717807359,2.29,185.95,185.88,5.3793]
[1755717808156,2.29,185.95,185.83,2.85]
[1755717808956,147.87,185.95,185.87,5.3795]
[1755717809257,148.21,185.95,185.85,2.85]
[1755717810058,148.21,185.95,185.88,5.3792]
[1755717810258,148.21,185.95,185.85,2.85]
[1755717810756,2.29,185.95,185.85,2.85]
[1755717811156,148.55,185.95,185.85,2.85]
[1755717811951,2.29,185.95,185.85,2.85]
[1755717812251,146.18,185.98,185.85,2.85]
[1755717812453,537.93593674,186.07,185.85,2.85]
[1755717812454,2.29,186.04,185.89,4.77435074]
[1755717812655,0.93593674,186.07,185.78,16.25]
[1755717812656,2.29,186.1,185.94,2.85]
[1755717812848,146.14,186.09,185.94,2.85]
[1755717813556,2.29,186.08,185.94,2.85]
[1755717813761,146.06,186.07,185.94,2.85]
[1755717813953,146.06,186.07,185.99,5.3762]
[1755717814554,146.06,186.07,185.94,2.85]
[1755717814954,2.29,186.08,185.94,2.85]
[1755717815258,2.29,186.08,185.98,2.85]
[1755717815659,148.19,186.08,186.0,5.3758]
[1755717815855,148.21,186.08,185.98,2.85]
[1755717816053,363.73,186.13,185.98,2.85]
[1755717816254,509.61,186.13,185.98,2.85]
[1755717817261,509.61,186.13,186.02,5.3752]
[1755717817456,509.61,186.13,185.98,2.85]
[1755717817960,509.61,186.13,186.02,5.3752]
[1755717818155,509.61,186.13,185.92,8.11642569]
[1755717818156,363.73,186.13,186.01,2.85]
[1755717818362,363.73,186.13,186.03,5.375]
[1755717818658,363.73,186.13,186.01,2.85]
[1755717818659,145.56,186.12,186.01,2.85]
[1755717818859,145.56,186.12,186.03,5.3751]
[1755717819061,2.29,186.11,186.01,2.85]
[1755717819456,145.5,186.1,185.92,8.11642569]
[1755717819655,2.29,186.09,185.93,2.85]
[1755717819961,2.29,186.09,185.96,5.3769]
[1755717820262,2.29,186.09,185.89,2.85]
[1755717820456,145.54,186.08,185.89,2.85]
[1755717820658,145.54,186.08,185.99,5.3762]
[1755717820955,145.54,186.08,185.97,2.85]
[1755717821352,145.4,186.07,185.97,2.85]
[1755717821758,2.29,186.09,186.02,5.3752]
[1755717821965,145.38,186.08,185.92,8.11642569]
[1755717822171,145.38,186.08,185.93,2.85]
[1755717822362,2.29,186.09,185.93,2.85]
[1755717822567,145.48,186.1,185.93,2.85]
[1755717822760,363.73,186.13,185.93,2.85]
[1755717822957,145.48,186.1,185.93,2.85]
[1755717823162,145.56,186.11,185.96,2.85]
[1755717823363,145.56,186.11,186.06,5.3742]
[1755717823563,145.56,186.11,186.06,2.85]
[1755717823767,145.56,186.11,186.03,2.85]
[1755717823969,507.14,186.13,185.99,8.11642569]
[1755717824166,507.14,186.13,186.0,2.85]
[1755717824367,507.14,186.13,186.04,5.3748]
[1755717824870,145.86,186.12,186.05,5.3743]
[1755717825266,2.29,186.15,186.05,2.85]
[1755717825475,2.29,186.23,186.05,2.85]
[1755717825775,2.29,186.21,186.05,2.85]
[1755717825966,2.29,186.21,186.09,5.3733]
[1755717826166,2.29,186.21,186.05,2.85]
[1755717826563,2.29,186.21,186.07,5.3737]
[1755717827175,2.29,186.21,186.05,2.85]
[1755717827372,2.29,186.19,186.05,2.85]
[1755717827767,145.84,186.18,186.05,2.85]
[1755717827966,2.29,186.19,186.05,2.85]
[1755717828166,148.27,186.19,186.05,2.85]
[1755717828368,2.29,186.24,186.05,2.85]
[1755717828664,2.29,186.22,186.06,2.85]
[1755717829274,147.14,186.21,186.06,2.85]
[1755717829876,147.14,186.21,186.15,5.3715]
[1755717830077,147.14,186.21,186.12,2.85]
[1755717830278,147.14,186.21,186.14,5.3719]
[1755717831285,2.29,186.22,186.12,2.85]
[1755717831683,2.29,186.22,186.08,2.85]
[1755717832181,2.29,186.22,186.08,8.2236]
[1755717832786,2.29,186.22,186.08,2.85]
[1755717833081,2.29,186.18,186.04,2.85]
[1755717833480,2.29,186.14,185.99,2.85]
[1755717833780,2.29,186.12,186.03,5.3748]
[1755717834082,149.09,186.12,185.99,2.85]
[1755717834872,149.09,186.12,186.05,5.3744]
[1755717835084,149.09,186.12,185.99,2.85]
[1755717836186,149.09,186.12,186.0,5.3757]
[1755717836386,153.8234301,186.12,185.99,2.85]
[1755717837076,2.29,186.11,185.99,2.85]
[1755717838477,2.29,186.11,186.02,5.3753]
[1755717838687,2.29,186.11,185.99,2.85]
[1755717839186,6.96656882,186.23,185.99,2.85]
[1755717839187,151.1134301,186.16,185.99,2.85]
[1755717839488,2.29,186.15,186.0,3.02]
[1755717840285,4.7334301,186.09,186.0,3.02]
[1755717840488,2.29,186.08,185.97,3.02]
[1755717841585,2.29,186.15,186.02,3.02]
[1755717842290,2.29,186.11,185.98,3.02]
[1755717843386,2.29,186.07,185.98,3.02]
[1755717843592,2.29,186.07,185.98,8.3964]
[1755717843780,2.29,186.07,185.93,3.02]
[1755717843987,2.29,186.03,185.93,3.02]
[1755717844182,2.29,186.03,185.94,5.3775]
[1755717844387,2.29,186.03,185.93,3.02]
[1755717844987,2.29,186.03,185.89,3.02]
[1755717845382,4.7334301,186.02,185.92,5.3782]
[1755717845791,4.7334301,186.02,185.89,3.02]
[1755717846288,2.29,186.03,185.89,3.02]
[1755717846890,2.29,186.07,185.89,3.02]
[1755717847087,2.29,186.07,185.99,5.3761]
[1755717847293,2.29,186.07,185.93,3.02]
[1755717847894,2.29,186.07,186.0,5.376]
[1755717848192,2.29,186.07,185.98,3.02]
[1755717848396,2.29,186.07,186.01,5.3756]
[1755717848595,2.29,186.07,185.98,3.02]
[1755717849189,2.29,186.12,185.98,3.02]
[1755717850296,145.8,186.12,185.98,3.02]
[1755717850487,2.29,186.11,185.98,3.02]
[1755717850691,2.29,186.11,186.0,5.376]
[1755717850994,2.29,186.11,185.98,3.02]
[1755717851201,2.29,186.11,186.02,3.02]
[1755717851391,2.29,186.11,185.92,15.4900301]
[1755717851392,2.29,186.11,185.93,3.02]
[1755717851692,2.29,186.11,186.01,5.3755]
[1755717851995,2.29,186.11,185.99,3.02]
[1755717853099,2.29,186.11,186.01,5.3756]
[1755717853296,2.29,186.11,185.99,3.02]
[1755717853696,2.29,186.11,186.01,5.3757]
[1755717854099,147.65,186.11,186.01,5.3757]
[1755717854299,147.61,186.11,185.99,3.02]
[1755717854691,2.29,186.11,185.99,3.02]
[1755717854897,145.28,186.1,186.01,5.3756]
[1755717855095,145.28,186.1,185.99,3.02]
[1755717855297,2.29,186.11,185.99,3.02]
[1755717855695,361.12,186.13,186.0,4.7334301]
[1755717856002,2.29,186.22,186.05,3.02]
[1755717856204,147.71,186.22,186.05,3.02]
[1755717856405,147.71,186.22,186.08,4.7334301]
[1755717856597,2.29,186.22,186.09,3.02]
[1755717856793,2.29,186.22,186.16,5.3712]
[1755717856998,363.49,186.27,186.14,3.02]
[1755717857201,508.85,186.27,186.14,3.02]
[1755717857409,363.49,186.27,186.14,3.02]
[1755717857608,0.03666521,186.22,186.14,3.02]
[1755717858103,0.03666521,186.22,186.12,4.7334301]
[1755717858400,0.03666521,186.22,186.19,3.02]
[1755717858905,0.03666521,186.22,186.15,3.02]
[1755717859203,0.03666521,186.22,186.17,5.371]
[1755717859398,363.49,186.27,186.18,3.02]
[1755717859802,0.03777685,186.21,186.18,3.02]
[1755717860995,0.03777685,186.21,186.17,5.371]
[1755717861201,0.03777685,186.21,186.18,3.02]
[1755717861602,0.03777685,186.21,186.08,4.46316558]
[1755717861603,0.03777685,186.21,186.13,3.02]
[1755717862105,2.29,186.23,186.13,8.392]
[1755717862298,0.03442474,186.19,186.13,8.392]
[1755717862494,0.03442474,186.19,186.13,3.02]
[1755717862702,0.03442474,186.19,186.17,3.02]
[1755717863103,4.7334301,186.25,186.18,5.3708]
[1755717863603,0.04015305,186.2,186.16,3.02]
[1755717863805,0.04015305,186.2,186.17,3.02]
[1755717864206,4.7334301,186.25,186.17,3.02]
[1755717864407,4.7334301,186.25,186.08,3.02]
[1755717864613,0.03916755,186.2,186.08,3.02]
[1755717865107,2.29,186.23,186.11,3.02]
[1755717865309,0.0375117,186.16,186.11,3.02]
[1755717865500,0.0375117,186.16,186.08,3.02]
[1755717868105,0.0375117,186.16,186.12,5.3723]
[1755717868311,0.0375117,186.16,186.07,4.7334301]
[1755717868514,0.0375117,186.16,186.12,2.8]
[1755717868709,0.0375117,186.16,186.15,8.1716]
[1755717868913,0.0375117,186.16,186.15,2.8]
[1755717870312,2.29,186.25,186.15,2.8]
[1755717871411,2.29,186.25,186.17,5.371]
[1755717871613,2.29,186.25,186.18,0.04079758]
[1755717875912,2.29,186.25,186.18,5.41149758]
[1755717876312,537.0,186.35,186.19,2.8]
[1755717876512,2.29,186.31,186.22,5.3696]
[1755717876707,2.29,186.31,186.19,2.8]
[1755717876909,2.29,186.31,186.24,5.3688]
[1755717877218,2.29,186.31,186.25,0.03515929]
[1755717878713,5.3678,186.29,186.25,0.03515929]
[1755717878907,2.29,186.28,186.25,0.03515929]
[1755717879313,2.29,186.27,186.25,0.03515929]
[1755717879821,5.3686,186.26,186.25,0.03515929]
[1755717881021,5.3686,186.26,186.14,2.8]
[1755717881022,2.29,186.26,186.14,2.8]
[1755717881215,7.0234301,186.26,186.18,5.3707]
[1755717881418,7.0234301,186.26,186.14,2.8]
[1755717881616,2.29,186.26,186.14,2.8]
[1755717881818,4.7334301,186.25,186.17,5.3711]
[1755717882118,4.7334301,186.25,186.14,2.8]
[1755717882422,4.7334301,186.25,186.18,5.3709]
[1755717882618,2.29,186.26,186.16,2.8]
[1755717882919,2.29,186.26,186.21,8.1699]
[1755717883117,0.03768303,186.23,186.22,2.8]
[1755717883316,0.03768303,186.23,186.22,8.1698]
[1755717883516,4.7334301,186.28,186.22,5.3698]
[1755717883718,2.29,186.27,186.14,2.8]
[1755717884017,7.0234301,186.27,186.16,2.8]